bitfinex-derivatives/quotes_BTCF0:USTF0_20251220
["timestamp","ask_amount","ask_price","bid_price","bid_amount"]
[1766222344367,0.0113237,88359.0,88340.0,0.21191113]
[1766222345466,0.01149301,88363.0,88340.0,0.21191113]
[1766222345666,0.02635825,88362.0,88340.0,0.21191113]
[1766222345866,0.02635825,88361.0,88340.0,0.21191113]
[1766222346165,0.02635825,88360.0,88340.0,0.21191113]
[1766222346361,0.01149301,88363.0,88340.0,0.21191113]
[1766222346554,0.02635822,88362.0,88340.0,0.011326]
[1766222346759,0.02635822,88361.0,88340.0,0.011326]
[1766222346959,0.02635822,88360.0,88340.0,0.011326]
[1766222347254,0.01149301,88363.0,88340.0,0.011326]
[1766222347559,0.02635807,88362.0,88340.0,0.011326]
[1766222347754,0.02635807,88361.0,88340.0,0.011326]
[1766222347968,0.02635807,88360.0,88340.0,0.011326]
[1766222348170,0.01149301,88363.0,88340.0,0.011326]
[1766222348466,0.0113234,88361.0,88340.0,0.011326]
[1766222348668,0.02635765,88360.0,88340.0,0.011326]
[1766222349972,0.02635765,88360.0,88340.0,0.21191223]
[1766222350975,0.0113234,88361.0,88340.0,0.21191223]
[1766222351674,0.00016981,88363.0,88343.0,0.0113256]
[1766222351877,0.02612675,88362.0,88343.0,0.0113256]
[1766222352075,0.02612675,88361.0,88343.0,0.0113256]
[1766222352276,0.00016981,88363.0,88343.0,0.0113256]
[1766222352478,0.0261269,88362.0,88343.0,0.0113256]
[1766222352677,0.00016981,88363.0,88343.0,0.0113256]
[1766222353779,0.0113233,88362.0,88343.0,0.0113256]
[1766222360488,0.0113237,88359.0,88339.0,0.0113261]
[1766222360888,0.01149301,88363.0,88339.0,0.0113261]
[1766222364301,0.02612705,88362.0,88339.0,0.0113261]
[1766222364598,0.01149301,88363.0,88339.0,0.0113261]
[1766222364900,0.0113235,88360.0,88350.0,0.20058623]
[1766222365698,0.0113235,88360.0,88339.0,0.0113261]
[1766222365894,0.0113235,88360.0,88350.0,0.20058623]
[1766222367795,0.0113235,88360.0,88339.0,0.0113261]
[1766222367996,0.0113235,88360.0,88340.0,0.20058623]
[1766222373204,0.0113239,88358.0,88335.0,0.0722942]
[1766222373392,0.0113242,88355.0,88335.0,0.0722942]
[1766222374299,0.0113237,88359.0,88335.0,0.0722942]
[1766222374498,0.21190983,88360.0,88337.0,0.0113264]
[1766222375005,0.21190973,88360.0,88331.0,0.06209303]
[1766222375305,0.21190973,88360.0,88338.0,0.0113262]
[1766222376705,0.0113235,88360.0,88338.0,0.0113262]
[1766222382006,0.0113235,88360.0,88335.0,0.06349626]
[1766222382203,0.0113235,88360.0,88331.0,0.00016981]
[1766222382808,0.0113235,88360.0,88331.0,0.0620743]
[1766222384214,0.0113235,88360.0,88341.0,0.0113259]
[1766222386713,0.0113235,88360.0,88340.0,0.20059184]
[1766222387311,0.0113235,88360.0,88341.0,0.0113259]
[1766222388211,0.0113235,88360.0,88340.0,0.20059184]
[1766222388212,0.00016981,88363.0,88344.0,0.0113255]
[1766222388602,0.02611279,88362.0,88344.0,0.0113255]
[1766222388802,0.00016981,88363.0,88344.0,0.0113255]
[1766222389003,0.02611283,88362.0,88344.0,0.0113255]
[1766222389304,0.00016981,88363.0,88344.0,0.0113255]
[1766222389598,0.02611293,88362.0,88344.0,0.0113255]
[1766222389799,0.00016981,88363.0,88344.0,0.0113255]
[1766222389999,0.02611285,88362.0,88344.0,0.0113255]
[1766222390199,0.00016981,88363.0,88344.0,0.0113255]
[1766222390404,0.02611302,88362.0,88344.0,0.0113255]
[1766222390701,0.00016981,88363.0,88344.0,0.0113255]
[1766222390899,0.02611299,88362.0,88344.0,0.0113255]
[1766222391114,0.00016981,88363.0,88344.0,0.0113255]
[1766222391314,0.02611305,88362.0,88344.0,0.0113255]
[1766222391515,0.00016981,88363.0,88344.0,0.0113255]
[1766222391715,0.02611308,88362.0,88344.0,0.0113255]
[1766222391916,0.00016981,88363.0,88344.0,0.0113255]
[1766222392112,0.02611311,88362.0,88344.0,0.0113255]
[1766222392312,0.00016981,88363.0,88344.0,0.0113255]
[1766222392513,0.02611321,88362.0,88344.0,0.0113255]
[1766222392812,0.0113233,88362.0,88340.0,0.21191784]
[1766222393001,0.0261132,88361.0,88340.0,0.21191784]
[1766222393207,0.00016981,88363.0,88340.0,0.20059184]
[1766222393410,0.02611329,88362.0,88340.0,0.20059184]
[1766222393610,0.00016981,88363.0,88340.0,0.20059184]
[1766222393918,0.0113234,88361.0,88341.0,0.0113259]
[1766222394612,0.0113234,88361.0,88340.0,0.20059184]
[1766222396118,0.01149301,88363.0,88342.0,0.0113258]
[1766222396317,0.0113234,88361.0,88342.0,0.0113258]
[1766222397119,0.0113234,88361.0,88340.0,0.20059184]
[1766222397614,0.0113234,88362.0,88340.0,0.20059184]
[1766222397917,0.02611333,88361.0,88340.0,0.20059184]
[1766222398215,0.0113234,88362.0,88340.0,0.20059184]
[1766222398414,0.02611337,88361.0,88340.0,0.20059184]
[1766222398614,0.0113234,88362.0,88340.0,0.20059184]
[1766222398817,0.0113235,88360.0,88340.0,0.20059184]
[1766222399408,0.0113235,88360.0,88340.0,0.20059614]
[1766222401722,0.00016981,88363.0,88342.0,0.0113258]
[1766222402022,0.0261133,88362.0,88342.0,0.0113258]
[1766222402319,0.0261133,88361.0,88342.0,0.0113258]
[1766222402522,0.00016981,88363.0,88342.0,0.0113258]
[1766222402723,0.02611326,88362.0,88342.0,0.0113258]
[1766222402922,0.02611326,88361.0,88342.0,0.0113258]
[1766222403126,0.00016981,88363.0,88342.0,0.0113258]
[1766222403422,0.01149301,88363.0,88342.0,0.0113258]
[1766222403812,0.00016981,88363.0,88345.0,0.0113254]
[1766222404018,0.00012981,88363.0,88350.0,0.20059614]
[1766222404218,0.0113215,88376.0,88338.0,0.08155147]
[1766222404414,0.02610738,88375.0,88357.0,0.0113239]
[1766222404727,0.0113207,88382.0,88360.0,0.21191964]
[1766222404921,0.02610847,88381.0,88360.0,0.21191964]
[1766222405128,0.0113211,88379.0,88360.0,0.20059614]
[1766222405324,0.0113211,88379.0,88361.0,0.00016981]
[1766222406628,0.00323473,88383.0,88361.0,0.00016981]
[1766222406817,0.0113211,88379.0,88361.0,0.00016981]
[1766222412930,0.01455533,88383.0,88361.0,0.00016981]
[1766222413329,0.011321,88380.0,88361.0,0.00016981]
[1766222414526,0.0113218,88374.0,88361.0,0.00016981]
[1766222415327,0.0113225,88368.0,88344.0,0.0113255]
[1766222415633,0.20059614,88360.0,88337.0,0.01108852]
[1766222415825,0.0113248,88350.0,88330.0,0.20059614]
[1766222416024,0.20059614,88360.0,88330.0,0.20059614]
[1766222416219,0.0113245,88353.0,88330.0,0.20059614]
[1766222416426,0.00016981,88350.0,88333.0,0.00016981]
[1766222416627,0.00016981,88350.0,88334.0,0.0113268]
[1766222421634,0.00016981,88350.0,88337.0,0.0113264]
[1766222425040,0.011323,88365.0,88340.0,0.20062016]
[1766222425242,0.011323,88365.0,88330.0,0.20062016]
[1766222425439,0.011323,88365.0,88340.0,0.20062016]
[1766222426240,0.011323,88365.0,88344.0,0.00016981]
[1766222429143,0.0113224,88369.0,88345.0,0.0113254]
[1766222434347,0.0113229,88365.0,88345.0,0.0113254]
[1766222434546,0.20062016,88380.0,88345.0,0.0113254]
[1766222434747,0.20062016,88370.0,88345.0,0.0113254]
[1766222436246,0.0113228,88366.0,88345.0,0.0113254]
[1766222442152,0.20062016,88380.0,88344.0,0.00016981]
[1766222442454,0.02571912,88379.0,88350.0,0.20062016]
[1766222442656,0.0113218,88374.0,88355.0,0.0113241]
[1766222442854,0.0113214,88377.0,88355.0,0.0113241]
[1766222443056,0.0113209,88381.0,88360.0,0.20062016]
[1766222443256,0.02572488,88380.0,88362.0,0.00016981]
[1766222443450,0.0113203,88386.0,88363.0,0.0113231]
[1766222443650,0.02572617,88382.0,88363.0,0.0113231]
[1766222443861,0.01455533,88383.0,88362.0,0.00016981]
[1766222444653,0.01455533,88383.0,88362.0,0.01149301]
[1766222447754,0.0113206,88383.0,88362.0,0.01149301]
[1766222448761,0.0113201,88387.0,88362.0,0.01149301]
[1766222448966,0.0113204,88385.0,88362.0,0.01149301]
[1766222450161,0.0113204,88385.0,88362.0,0.00016981]
[1766222450362,0.0113208,88382.0,88362.0,0.00016981]
[1766222451263,0.20062016,88400.0,88362.0,0.00016981]
[1766222451264,0.0113221,88372.0,88362.0,0.00016981]
[1766222452766,0.0113215,88376.0,88362.0,0.00016981]
[1766222455868,0.011321,88380.0,88362.0,0.00016981]
[1766222459371,0.21184186,88380.0,88362.0,0.00016981]
[1766222461967,0.20052086,88380.0,88362.0,0.00016981]
[1766222462173,0.0113209,88381.0,88362.0,0.00016981]
[1766222462471,0.20052086,88380.0,88362.0,0.00016981]
[1766222462871,0.0113183,88402.0,88370.0,0.20052086]
[1766222463067,0.20052086,88390.0,88370.0,0.20052086]
[1766222464170,0.0113199,88389.0,88370.0,0.20052086]
[1766222464370,0.20052086,88390.0,88370.0,0.20052086]
[1766222465173,0.0113202,88386.0,88370.0,0.20052086]
[1766222466267,0.20052086,88390.0,88370.0,0.20052086]
[1766222467273,0.0113201,88387.0,88370.0,0.20052086]
[1766222470569,0.0113199,88389.0,88370.0,0.20052086]
[1766222470771,0.0113201,88387.0,88370.0,0.20052086]
[1766222473084,0.02569421,88386.0,88370.0,0.20052086]
[1766222473282,0.02569421,88385.0,88370.0,0.20052086]
[1766222473578,0.02569421,88384.0,88370.0,0.20052086]
[1766222473767,0.02569421,88383.0,88370.0,0.20052086]
[1766222473966,0.02569421,88382.0,88370.0,0.20052086]
[1766222474178,0.02569421,88381.0,88370.0,0.20052086]
[1766222474378,0.02569421,88380.0,88370.0,0.20052086]
[1766222474580,0.0113201,88387.0,88370.0,0.20052086]
[1766222474767,0.02569669,88386.0,88370.0,0.20052086]
[1766222474974,0.02569669,88385.0,88370.0,0.20052086]
[1766222475276,0.03701719,88384.0,88370.0,0.20052086]
[1766222475476,0.02569669,88383.0,88370.0,0.20052086]
[1766222475681,0.02569669,88382.0,88366.0,0.0113227]
[1766222475982,0.02569669,88381.0,88370.0,0.20052086]
[1766222476280,0.02569669,88380.0,88370.0,0.20052086]
[1766222476481,0.20052086,88390.0,88370.0,0.21184296]
[1766222476670,0.0113173,88409.0,88362.0,0.00016981]
[1766222476671,0.02569676,88389.0,88380.0,0.20052086]
[1766222476876,0.02569676,88388.0,88380.0,0.20052086]
[1766222477070,0.0113186,88399.0,88380.0,0.20052086]
[1766222477276,0.0113188,88397.0,88376.0,0.00016971]
[1766222477475,0.0113191,88395.0,88380.0,0.20052086]
[1766222477680,0.02568968,88394.0,88380.0,0.20052086]
[1766222477871,0.02568968,88393.0,88380.0,0.20052086]
[1766222478075,0.0113191,88395.0,88380.0,0.20052086]
[1766222478273,0.02568081,88394.0,88380.0,0.20052086]
[1766222478576,0.02568081,88394.0,88376.0,0.00016971]
[1766222478577,0.20052086,88390.0,88376.0,0.00016971]
[1766222479179,0.21184056,88390.0,88376.0,0.00016971]
[1766222479381,0.0113197,88390.0,88376.0,0.00016971]
[1766222480283,0.0113201,88387.0,88376.0,0.00016971]
[1766222480582,0.0113199,88389.0,88376.0,0.00016971]
[1766222482083,0.0113193,88393.0,88376.0,0.00016971]
[1766222482283,0.0113197,88390.0,88376.0,0.00016971]
[1766222482483,0.20052086,88400.0,88376.0,0.00016971]
[1766222482484,0.0113191,88395.0,88380.0,0.20052086]
[1766222482690,0.0113191,88395.0,88376.0,0.00016971]
[1766222482691,0.0113193,88393.0,88376.0,0.00016971]
[1766222482985,0.0113193,88393.0,88380.0,0.20052086]
[1766222483185,0.0113188,88397.0,88380.0,0.20052086]
[1766222485990,0.20052086,88390.0,88376.0,0.00016971]
[1766222487890,0.21184056,88390.0,88376.0,0.00016971]
[1766222488187,0.0113205,88384.0,88376.0,1e-08]
[1766222488381,0.011321,88380.0,88376.0,1e-08]
[1766222488889,0.0113203,88385.0,88350.0,0.08133686]
[1766222489185,0.0113198,88389.0,88370.0,0.20052086]
[1766222489580,0.0113203,88386.0,88359.0,0.0113236]
[1766222489885,0.00016938,88381.0,88364.0,0.00016971]
[1766222490081,0.20052086,88380.0,88364.0,0.00016971]
[1766222490278,0.00016938,88381.0,88364.0,0.00016971]
[1766222490478,0.20052086,88380.0,88364.0,0.00016971]
[1766222490676,0.00016938,88381.0,88364.0,0.00016971]
[1766222491289,0.01149028,88381.0,88364.0,0.00016971]
[1766222491683,0.20052086,88380.0,88364.0,0.00016971]
[1766222491884,0.0113222,88370.0,88364.0,1e-08]
[1766222492087,0.0113222,88371.0,88364.0,1e-08]
[1766222492574,0.0113216,88375.0,88364.0,1e-08]
[1766222495891,0.0113211,88379.0,88364.0,1e-08]
[1766222497893,0.21187211,88380.0,88364.0,1e-08]
[1766222499284,0.011321,88380.0,88364.0,1e-08]
[1766222499594,0.20055111,88380.0,88364.0,1e-08]
[1766222503195,0.00016938,88381.0,88364.0,1e-08]
[1766222503396,0.20055111,88380.0,88364.0,1e-08]
[1766222506893,0.0113211,88379.0,88364.0,1e-08]
[1766222520108,0.21187211,88380.0,88364.0,1e-08]
[1766222520308,0.20055111,88380.0,88364.0,1e-08]
[1766222521409,0.00016938,88381.0,88364.0,1e-08]
[1766222521609,0.02567119,88380.0,88364.0,1e-08]
[1766222521916,0.0113188,88397.0,88375.0,0.0113216]
[1766222522097,0.20051705,88410.0,88375.0,0.0113216]
[1766222522098,0.011319,88395.0,88375.0,0.0113216]
[1766222522303,0.011319,88395.0,88371.0,0.011322]
[1766222522511,0.0113195,88392.0,88370.0,0.20051705]
[1766222522710,0.0113203,88386.0,88364.0,0.06247772]
[1766222522904,0.0113203,88386.0,88365.0,0.0113228]
[1766222523103,0.0001697,88384.0,88367.0,0.00016971]
[1766222524300,0.0113206,88383.0,88367.0,0.00016971]
[1766222524505,0.011321,88380.0,88367.0,0.00016971]
[1766222526107,0.0001697,88384.0,88367.0,0.00016971]
[1766222528520,0.0001697,88384.0,88367.0,0.01149231]
[1766222529106,0.0001697,88384.0,88370.0,0.21183915]
[1766222532020,0.0001697,88384.0,88370.0,0.27288623]
[1766222533123,0.0001697,88384.0,88373.0,0.0113218]
[1766222533310,0.0001697,88384.0,88370.0,0.26156413]
[1766222533819,0.0001697,88384.0,88371.0,0.0113221]
[1766222542332,0.0001697,88384.0,88371.0,0.07236918]
[1766222546436,0.0001697,88384.0,88372.0,0.06104708]
[1766222547039,0.0001697,88384.0,88373.0,0.0113218]
[1766222547340,0.0001697,88384.0,88372.0,0.06104708]
[1766222548543,0.0001697,88384.0,88372.0,0.07236898]
[1766222549238,0.0001697,88384.0,88373.0,0.06104708]
[1766222551437,0.0001697,88384.0,88374.0,0.06104708]
[1766222557246,0.0001697,88384.0,88374.0,8e-08]
[1766222557247,0.20062763,88384.0,88374.0,8e-08]
[1766222557440,0.0113214,88377.0,88367.0,0.00016971]
[1766222561143,0.0113211,88379.0,88348.0,0.08133686]
[1766222561449,0.0113233,88362.0,88350.0,6e-08]
[1766222561844,0.0113243,88355.0,88334.0,0.08133686]
[1766222562149,0.00016971,88353.0,88336.0,0.00016971]
[1766222562448,0.00016971,88353.0,88340.0,0.20045793]
[1766222563041,0.00016971,88353.0,88336.0,0.00016971]
[1766222563245,0.00016971,88353.0,88340.0,0.20045793]
[1766222563445,0.00016971,88353.0,88336.0,0.01149621]
[1766222564645,0.00016971,88353.0,88339.0,0.0113261]
[1766222565342,0.00016971,88353.0,88336.0,0.00016971]
[1766222565541,0.00016971,88353.0,88340.0,0.20045793]
[1766222565844,0.00016971,88353.0,88343.0,0.0113256]
[1766222566446,1e-08,88353.0,88343.0,0.0113256]
[1766222566952,1e-08,88353.0,88346.0,0.0113253]
[1766222571552,1e-08,88353.0,88349.0,0.0113249]
[1766222586847,1e-08,88353.0,88343.0,0.20055732]
[1766222587052,1e-08,88353.0,88342.0,0.06273756]
[1766222587252,1e-08,88353.0,88341.0,0.0113259]
[1766222591267,1e-08,88353.0,88341.0,0.09266276]
[1766222595361,1e-08,88353.0,88344.0,0.0113256]
[1766222596871,0.011323,88365.0,88344.0,0.0113256]
[1766222597368,0.011323,88365.0,88347.0,0.0113252]
[1766222597873,0.0114927,88365.0,88347.0,0.0113252]
[1766222598775,0.0001697,88365.0,88347.0,0.0113252]
[1766222599163,0.0001697,88365.0,88348.0,0.02832]
[1766222601676,0.0001697,88365.0,88348.0,0.039645]
[1766222604670,0.0001697,88365.0,88350.0,0.20055732]
[1766222607870,0.0001697,88365.0,88350.0,0.20057754]
[1766222620987,0.0001697,88365.0,88351.0,0.02832]
[1766222651695,0.0001697,88365.0,88352.0,0.0113245]
[1766222652504,0.0001697,88365.0,88351.0,0.02832]
[1766222653302,0.0001697,88365.0,88351.0,0.0396446]
[1766222655801,0.0113218,88374.0,88354.0,0.0113242]
[1766222656008,0.00308,88373.0,88352.0,0.0113244]
[1766222656399,1.5051412,88391.0,88362.0,0.0113233]
[1766222656608,0.0113203,88385.0,88365.0,0.0113229]
[1766222656806,0.0113203,88385.0,88366.0,0.02020971]
[1766222656999,0.22888389,88390.0,88366.0,0.02020971]
[1766222657307,0.0113199,88389.0,88367.0,0.0113225]
[1766222660801,0.02832,88390.0,88366.0,0.02020971]
[1766222660802,0.0113204,88385.0,88366.0,0.02020971]
[1766222663011,0.0113198,88389.0,88367.0,0.0113225]
[1766222665914,0.02832,88390.0,88370.0,0.0113222]
[1766222666615,0.0396397,88390.0,88370.0,0.0113222]
[1766222666813,0.0396397,88390.0,88366.0,0.03153241]
[1766222671517,0.0396397,88390.0,88369.0,0.0113223]
[1766222676026,0.02832,88390.0,88366.0,0.02020971]
[1766222677226,0.0113201,88387.0,88366.0,0.02020971]
[1766222686923,0.0113201,88387.0,88367.0,0.0113226]
[1766222688033,0.0113201,88387.0,88366.0,0.02020971]
[1766222690839,0.0113201,88387.0,88366.0,0.03153241]
[1766222692738,0.02832,88390.0,88369.0,0.0113223]
[1766222692940,0.0258333,88389.0,88369.0,0.0113223]
[1766222693239,0.02832,88390.0,88369.0,0.0113223]
[1766222693440,0.0258333,88389.0,88369.0,0.0113223]
[1766222693644,0.02832,88390.0,88369.0,0.0113223]
[1766222693831,0.02583328,88389.0,88369.0,0.0113223]
[1766222694033,0.02832,88390.0,88369.0,0.0113223]
[1766222694239,0.03715309,88389.0,88369.0,0.0113223]
[1766222694440,0.0113198,88389.0,88369.0,0.0113223]
[1766222699541,0.0113198,88389.0,88366.0,0.02020971]
[1766222700243,0.0113203,88385.0,88366.0,0.02020971]
[1766222703142,0.02584153,88384.0,88366.0,0.02020971]
[1766222703344,0.02584153,88383.0,88366.0,0.02020971]
[1766222703545,0.02584151,88382.0,88366.0,0.02020971]
[1766222703742,0.0113199,88389.0,88367.0,0.0113225]
[1766222703941,0.02584151,88388.0,88367.0,0.0113225]
[1766222704144,0.02584151,88387.0,88367.0,0.0113225]
[1766222704344,0.02584151,88386.0,88367.0,0.0113225]
[1766222704543,0.02584151,88385.0,88366.0,0.02020971]
[1766222704744,0.02584151,88384.0,88366.0,0.02020971]
[1766222704943,0.02584151,88383.0,88366.0,0.03153241]
[1766222705141,0.02584151,88382.0,88366.0,0.03153241]
[1766222705337,0.0113201,88387.0,88370.0,0.20047956]
[1766222705543,0.02584191,88386.0,88370.0,0.20047956]
[1766222705738,0.02584191,88385.0,88370.0,0.20047956]
[1766222705945,0.02584191,88384.0,88370.0,0.20047956]
[1766222706245,0.02584191,88383.0,88370.0,0.20047956]
[1766222706441,0.02584191,88382.0,88370.0,0.20047956]
[1766222706742,0.0113201,88387.0,88370.0,0.20047956]
[1766222707042,0.02584273,88386.0,88370.0,0.20047956]
[1766222707343,0.02584273,88385.0,88370.0,0.20047956]
[1766222707539,0.02584273,88384.0,88370.0,0.20047956]
[1766222707739,0.02584273,88383.0,88370.0,0.20047956]
[1766222707932,0.02584273,88382.0,88370.0,0.20047956]
[1766222708136,0.0113201,88387.0,88370.0,0.20047956]
[1766222708335,0.02584278,88386.0,88370.0,0.20047956]
[1766222708539,0.02584278,88385.0,88370.0,0.20047956]
[1766222708836,0.02584278,88384.0,88370.0,0.20047956]
[1766222709036,0.02584278,88383.0,88370.0,0.20047956]
[1766222709237,0.02584278,88382.0,88370.0,0.20047956]
[1766222709449,0.0113201,88387.0,88370.0,0.20047956]
[1766222709650,0.02584247,88386.0,88370.0,0.20047956]
[1766222709850,0.02584247,88385.0,88370.0,0.20047956]
[1766222710051,0.02584247,88384.0,88370.0,0.20047956]
[1766222710252,0.02584247,88383.0,88370.0,0.20047956]
[1766222710454,0.02584247,88382.0,88370.0,0.20047956]
[1766222710752,0.22879956,88390.0,88370.0,0.20047956]
[1766222710952,0.02584695,88389.0,88370.0,0.20047956]
[1766222711152,0.0113201,88387.0,88370.0,0.20047956]
[1766222711353,0.02584695,88386.0,88370.0,0.20047956]
[1766222711561,0.02584695,88385.0,88370.0,0.20047956]
[1766222711762,0.02584695,88384.0,88370.0,0.20047956]
[1766222711960,0.02584695,88383.0,88370.0,0.20047956]
[1766222712260,0.02584695,88382.0,88370.0,0.20047956]
[1766222712462,0.0113201,88387.0,88370.0,0.20047956]
[1766222712664,0.02584685,88386.0,88370.0,0.20047956]
[1766222712854,0.02584685,88385.0,88370.0,0.20047956]
[1766222713055,0.02584685,88384.0,88370.0,0.20047956]
[1766222713363,0.0113201,88387.0,88370.0,0.20047956]
[1766222714464,0.0113201,88387.0,88371.0,0.02832]
[1766222736374,0.22880073,88390.0,88366.0,1e-08]
[1766222736682,0.0113213,88378.0,88359.0,0.02832]
[1766222736880,0.20048073,88370.0,88359.0,0.02832]
[1766222737281,0.00284,88377.0,88359.0,0.02832]
[1766222737578,0.20048073,88370.0,88359.0,0.02848971]
[1766222741985,0.02832,88369.0,88359.0,0.02848971]
[1766222742876,0.02832,88369.0,88359.0,0.00016971]
[1766222753200,0.0113225,88368.0,88359.0,0.00016971]
[1766222755599,0.02832,88369.0,88359.0,0.00016971]
[1766222762204,0.02832,88369.0,88354.0,0.02832]
[1766222762604,0.0396425,88369.0,88354.0,0.02832]
[1766222765195,0.2005582,88364.0,88353.0,1e-08]
[1766222765407,0.0113236,88360.0,88353.0,1e-08]
[1766222765701,0.02832,88363.0,88353.0,1e-08]
[1766222786734,0.0113238,88358.0,88339.0,0.02092]
[1766222787135,0.0113242,88355.0,88339.0,0.02092]
[1766222787638,0.00016971,88356.0,88339.0,0.02092]
[1766222788640,0.0113242,88355.0,88339.0,0.02092]
[1766222789228,0.00016971,88356.0,88339.0,0.02092]
[1766222789830,0.01149381,88356.0,88339.0,0.02092]
[1766222791739,0.00016971,88356.0,88339.0,0.02092]
[1766222795142,0.00016971,88356.0,88339.0,0.0322462]
[1766222795540,0.00016971,88356.0,88339.0,0.02092]
[1766222803246,0.00016971,88356.0,88340.0,0.011326]
[1766222805047,0.00016971,88356.0,88343.0,0.0113257]
[1766222808454,0.00016971,88356.0,88339.0,0.0322461]
[1766222810556,0.00016971,88356.0,88342.0,0.0113258]
[1766222812551,0.00016971,88356.0,88339.0,0.02092]
[1766222814248,0.00016971,88356.0,88340.0,0.011326]
[1766222820760,0.00016971,88356.0,88339.0,0.02092]
[1766222820960,0.00016971,88356.0,88344.0,0.0113255]
[1766222821562,0.01149381,88356.0,88338.0,0.00016971]
[1766222821751,0.20063093,88350.0,88338.0,0.00016971]
[1766222822661,0.21195573,88350.0,88338.0,0.00016971]
[1766222823150,0.20063093,88350.0,88338.0,0.00016971]
[1766222825460,0.2006609,88350.0,88338.0,0.00016971]
[1766222825758,0.20066068,88350.0,88338.0,0.00016971]
[1766222828854,0.20066068,88348.0,88338.0,0.00016971]
[1766222829061,0.02832,88347.0,88338.0,0.00016971]
[1766222835763,0.02832,88347.0,88338.0,0.01149601]
[1766222836766,0.02832,88347.0,88338.0,0.00016971]
[1766222848080,0.02832,88347.0,88334.0,0.0113268]
[1766222849873,0.02832,88347.0,88332.0,0.00016971]
[1766222850079,0.20066068,88342.0,88332.0,0.00016971]
[1766222851179,0.20066068,88342.0,88332.0,0.01149681]
[1766222851767,8e-08,88342.0,88335.0,0.0113267]
[1766222851968,0.20066068,88345.0,88335.0,0.0113267]
[1766222852278,0.02832,88347.0,88335.0,0.0113267]
[1766222854081,0.02832,88347.0,88332.0,0.00016971]
[1766222855082,0.02832,88347.0,88337.0,0.0113264]
[1766222857185,0.02832,88347.0,88332.0,0.00016971]
[1766222858188,0.02832,88347.0,88333.0,0.0113269]
[1766222859088,0.02832,88347.0,88332.0,0.00016971]
[1766222860190,0.02832,88347.0,88338.0,0.06117637]
[1766222861291,0.02832,88347.0,88338.0,0.05117637]
[1766222861595,0.02832,88347.0,88338.0,0.03117637]
[1766222861789,0.02832,88347.0,88338.0,0.02117637]
[1766222862297,0.02832,88347.0,88336.0,0.0113265]
[1766222869492,0.02832,88347.0,88332.0,0.01149671]
[1766222871696,0.02832,88347.0,88336.0,0.0113266]
[1766222880903,0.02832,88347.0,88333.0,0.011327]
[1766222883600,0.02832,88347.0,88332.0,0.00016971]
[1766222884009,0.02832,88347.0,88333.0,0.0113269]
[1766222889521,0.02832,88347.0,88343.0,0.040783]
[1766222890223,0.02832,88347.0,88344.0,0.040783]
[1766222891123,0.02832,88347.0,88344.0,0.020783]
[1766222891323,0.02832,88347.0,88344.0,0.010783]
[1766222891925,0.02832,88347.0,88339.0,0.06117579]
[1766222892827,0.02832,88347.0,88339.0,0.00117579]
[1766222893032,0.02832,88347.0,88335.0,0.00117579]
[1766222901536,0.02832,88347.0,88333.0,0.0113269]
[1766222913041,0.02832,88347.0,88339.0,0.06117253]
[1766222927558,0.02832,88347.0,88344.0,0.04078335]
[1766222930255,0.02832,88347.0,88339.0,0.00117253]
[1766222930556,0.02832,88347.0,88332.0,0.01149681]
[1766222930864,0.00016971,88356.0,88340.0,0.011326]
[1766222931067,0.02832,88355.0,88336.0,0.0113265]
[1766222938667,0.02832,88355.0,88333.0,0.02832]
[1766222938966,0.00016971,88356.0,88333.0,0.02832]
[1766222939166,0.0072,88355.0,88333.0,0.02832]
[1766222939372,0.00716,88355.0,88333.0,0.02832]
[1766222940164,0.00716,88355.0,88338.0,0.0113263]
[1766222949375,0.20062881,88350.0,88338.0,0.0113263]
[1766222950373,0.20062881,88350.0,88341.0,0.06115996]
[1766222952875,0.20062881,88350.0,88340.0,0.06115996]
[1766222953775,0.20062881,88350.0,88339.0,0.06115996]
[1766222954981,0.02832,88349.0,88339.0,0.06115996]
[1766222957083,0.02832,88349.0,88340.0,0.06115996]
[1766222960784,0.02832,88349.0,88345.0,0.03077416]
[1766222961777,0.02832,88349.0,88340.0,0.06115996]
[1766222979413,0.02832,88349.0,88336.0,0.0113265]
[1766222983218,0.02832,88349.0,88335.0,0.0113266]
[1766222985318,0.02832,88349.0,88338.0,0.0113262]
[1766222989318,0.02832,88349.0,88341.0,0.06115996]
[1766222990825,0.02832,88349.0,88345.0,0.04078311]
[1766222992824,0.02832,88349.0,88341.0,0.05343313]
[1766222998132,0.00016971,88356.0,88341.0,0.05343313]
[1766222998431,0.20064804,88351.0,88341.0,0.05343313]
[1766222998628,0.02652,88350.0,88341.0,0.05343313]
[1766223000835,0.00016971,88356.0,88345.0,0.0113253]
[1766223001033,1.64492804,88370.0,88346.0,0.20064804]
[1766223001334,0.0113213,88378.0,88353.0,0.0113244]
[1766223001636,0.01132,88388.0,88361.0,0.0113233]
[1766223001936,0.20064804,88380.0,88361.0,0.0113233]
[1766223002138,0.00480971,88379.0,88362.0,0.00016971]
[1766223003238,0.00480971,88379.0,88363.0,0.011323]
[1766223003436,0.02832,88378.0,88363.0,0.011323]
[1766223003637,0.00016971,88379.0,88363.0,0.011323]
[1766223004038,0.02832,88378.0,88363.0,0.011323]
[1766223004234,0.02832,88377.0,88363.0,0.011323]
[1766223004538,0.00016971,88379.0,88363.0,0.011323]
[1766223004739,0.02832,88378.0,88363.0,0.011323]
[1766223004938,0.00016971,88379.0,88363.0,0.011323]
[1766223005140,0.02832,88377.0,88363.0,0.011323]
[1766223006239,0.02832,88377.0,88362.0,0.00016971]
[1766223007539,0.02832,88378.0,88362.0,0.00016971]
[1766223008542,0.02832,88378.0,88363.0,0.0113231]
[1766223008741,0.02832,88378.0,88366.0,0.0113227]
[1766223009139,0.0113199,88389.0,88366.0,0.0396427]
[1766223009346,0.02832,88388.0,88366.0,0.0396427]
[1766223010149,0.00016971,88386.0,88366.0,0.0396427]
[1766223010833,0.00016971,88386.0,88370.0,0.0113222]
[1766223011332,0.00016971,88386.0,88366.0,0.0396427]
[1766223015045,0.0113206,88383.0,88366.0,0.02832]
[1766223015252,0.20048012,88380.0,88366.0,0.02832]
[1766223016044,0.20048012,88380.0,88362.0,0.00016971]
[1766223016247,0.20048012,88380.0,88363.0,0.01692]
[1766223019535,0.02832,88382.0,88364.0,0.011323]
[1766223019739,0.20048012,88380.0,88364.0,0.011323]
[1766223020045,0.02832,88382.0,88365.0,0.0113229]
[1766223025152,0.02832,88382.0,88367.0,0.04060577]
[1766223027150,0.02832,88382.0,88368.0,0.04060577]
[1766223027353,0.0396408,88382.0,88368.0,0.04060577]
[1766223028152,0.0396408,88382.0,88370.0,0.04060577]
[1766223028954,0.20048012,88380.0,88370.0,0.04060577]
[1766223029154,0.20048012,88380.0,88372.0,0.04060577]
[1766223029551,0.20048012,88380.0,88372.0,0.02060577]
[1766223029757,0.20048012,88380.0,88372.0,0.01060577]
[1766223029955,0.20048012,88380.0,88367.0,0.0608911]